bitfinex-derivatives/quotes_ETHF0:USTF0_20241230
["timestamp","ask_amount","ask_price","bid_price","bid_amount"]
[1735602399764,2.24677284,3361.6,3361.5,0.29803]
[1735602401262,2.54479284,3361.6,3361.4,3.50584]
[1735602401463,1.1071,3361.5,3361.4,3.50584]
[1735602402368,1.1071,3361.5,3361.4,3.2078]
[1735602402570,1.1071,3361.5,3361.4,3.50584]
[1735602404063,1.1071,3361.5,3361.1,3.50586]
[1735602404064,0.29804,3361.4,3361.1,3.50586]
[1735602404259,1.51514,3361.4,3361.2,0.29806]
[1735602405165,1.51514,3361.4,3361.0,40.8]
[1735602405166,0.29807,3361.1,3361.0,40.8]
[1735602405362,0.29807,3361.1,3360.9,0.29808]
[1735602405568,1.1851,3361.0,3360.9,0.29808]
[1735602407280,3.43187284,3361.0,3360.9,0.29809]
[1735602407586,0.29809,3360.9,3360.8,40.8]
[1735602408085,6.63967284,3361.0,3360.8,40.8]
[1735602408286,6.93775284,3361.0,3360.8,41.09809]
[1735602409087,6.63967284,3361.0,3360.9,0.29809]
[1735602410783,3.43187284,3361.0,3360.9,0.29809]
[1735602410986,3.43187284,3361.0,3360.8,40.8]
[1735602410987,3.72995284,3361.0,3360.8,41.09809]
[1735602411986,3.43187284,3361.0,3360.9,0.29809]
[1735602415989,1.1851,3361.0,3360.9,0.29809]
[1735602427294,1.1851,3361.0,3360.7,4.2878503]
[1735602427295,0.2981,3360.8,3360.7,4.2878503]
[1735602427492,3.5059,3360.8,3360.7,0.8936503]
[1735602427895,0.29811,3360.6,3360.5,6.99669035]
[1735602428198,2.54488284,3360.6,3360.5,6.99669035]
[1735602428497,0.29817,3360.0,3359.9,0.29817]
[1735602428694,2.54494284,3360.0,3359.9,0.29817]
[1735602428893,2.24677284,3360.0,3359.7,6.99669035]
[1735602429088,0.29818,3359.9,3359.8,0.29818]
[1735602429290,0.29818,3359.9,3359.7,6.99669035]
[1735602429485,0.29818,3359.9,3359.7,7.29488035]
[1735602429794,0.29818,3359.9,3359.7,0.29819]
[1735602430894,4.93314284,3360.0,3359.7,0.29819]
[1735602431099,1.1421,3359.9,3359.7,0.29819]
[1735602431698,1.1421,3359.9,3359.4,2.4546]
[1735602431894,1.1421,3359.9,3359.8,0.29818]
[1735602434398,2.24677284,3360.0,3359.4,2.4546]
[1735602434596,3.51280672,3360.3,3360.2,0.29815]
[1735602434903,5.75957956,3360.3,3360.2,0.29815]
[1735602435098,5.75957956,3360.3,3360.2,41.09815]
[1735602435099,2.24677284,3360.3,3360.2,41.09815]
[1735602435990,3.51280672,3360.4,3360.2,41.09815]
[1735602435991,3.51280672,3360.4,3360.2,40.8]
[1735602436197,3.51280672,3360.5,3360.3,4.387]
[1735602436405,3.51280672,3360.5,3360.4,0.29813]
[1735602436600,3.51280672,3360.5,3360.4,1.49523]
[1735602437598,2.24677284,3360.9,3360.8,0.2981]
[1735602439298,6.97237956,3361.2,3360.7,3.2078]
[1735602439498,6.97237956,3361.2,3361.1,0.29807]
[1735602439999,3.51280672,3361.2,3361.1,0.29807]
[1735602440203,1.23264672,3361.2,3361.1,3.50587]
[1735602440404,4.68374229,3361.5,3361.4,0.29804]
[1735602440704,4.68374229,3361.5,3361.4,41.09804]
[1735602442401,6.55607284,3362.2,3361.9,0.29799]
[1735602443202,3.2078,3362.2,3362.1,0.29798]
[1735602445795,5.45457284,3362.2,3361.4,44.0078]
[1735602445996,5.75254284,3362.2,3361.9,0.29799]
[1735602446196,5.45457284,3362.2,3361.4,3.2078]
[1735602446402,2.24677284,3361.8,3361.7,0.29802]
[1735602447503,3.34777284,3362.1,3361.4,3.95291]
[1735602447694,3.34777284,3362.1,3362.0,0.29799]
[1735602447891,3.34777284,3362.1,3361.9,0.29799]
[1735602449899,3.34777284,3362.1,3361.4,3.95291]
[1735602450101,3.34777284,3362.1,3362.0,0.29799]
[1735602458603,3.34777284,3362.1,3361.4,3.2078]
[1735602458910,0.298,3361.9,3361.7,0.29801]
[1735602459101,0.298,3361.9,3361.4,3.2078]
[1735602459102,0.29803,3361.6,3361.5,0.29803]
[1735602459405,0.29805,3361.4,3361.2,0.29806]
[1735602459700,4.4563,3361.3,3361.2,0.29806]
[1735602459904,6.70307284,3361.3,3361.2,0.29806]
[1735602467405,3.2078,3361.3,3361.2,0.29806]
[1735602467808,2.24677284,3361.6,3360.9,3.2078]
[1735602468117,0.29803,3361.5,3361.3,0.29804]
[1735602468415,2.24677284,3361.6,3360.9,3.2078]
[1735602468607,2.24677284,3361.6,3361.5,0.29803]
[1735602471908,3.2078,3361.7,3361.6,0.29802]
[1735602473216,3.2078,3361.7,3361.3,0.74512]
[1735602473407,3.2078,3361.7,3361.6,0.29802]
[1735602474514,2.2989,3361.8,3361.7,0.29802]
[1735602482711,2.68858,3362.1,3362.0,0.29799]
[1735602483315,3.2078,3362.2,3361.4,5.45457284]
[1735602483518,3.2078,3362.2,3362.1,0.29798]
[1735602484022,3.2078,3362.2,3362.1,41.09798]
[1735602484318,3.2078,3362.2,3362.1,0.29798]
[1735602484519,4.68374229,3362.6,3362.5,0.29794]
[1735602484818,4.68374229,3362.6,3362.5,41.09794]
[1735602485412,4.68374229,3362.6,3362.5,44.30574]
[1735602485916,2.3906,3363.0,3362.5,44.30574]
[1735602485917,2.3906,3363.0,3362.9,0.29791]
[1735602486918,0.29791,3362.9,3362.8,0.29791]
[1735602487717,2.68851,3363.0,3362.9,0.29791]
[1735602488522,2.3906,3363.0,3362.9,0.29791]
[1735602491117,0.29791,3362.9,3362.8,0.29792]
[1735602491726,2.3906,3363.0,3362.9,0.29791]
[1735602496228,2.54464284,3363.4,3362.7,1.2688]
[1735602496429,2.54464284,3363.4,3363.3,0.29787]
[1735602497223,2.24677284,3363.4,3363.3,0.29787]
[1735602497427,3.50566,3363.5,3363.4,0.29787]
[1735602497921,3.5975,3363.7,3363.0,0.74476]
[1735602498116,3.2078,3363.9,3363.8,0.29783]
[1735602498521,3.2078,3363.9,3363.8,41.09783]
[1735602498830,4.68374229,3364.1,3364.0,0.29781]
[1735602499430,2.3866,3364.2,3363.8,40.8]
[1735602499736,2.3866,3364.2,3364.1,0.2978]
[1735602501119,2.3866,3364.2,3363.8,40.8]
[1735602501431,2.3866,3364.2,3363.7,3.50563]
[1735602501432,0.29783,3363.8,3363.7,3.50563]
[1735602502330,2.24677284,3363.9,3363.7,3.50563]
[1735602502527,4.63337284,3364.2,3363.7,3.2078]
[1735602502728,0.29781,3364.0,3363.8,0.29783]
[1735602502928,9.6520248,3365.5,3363.9,3.46077284]
[1735602503131,9.6520248,3365.5,3365.0,0.29772]
[1735602503527,9.9497048,3365.5,3365.0,0.29772]
[1735602503831,3.50548,3365.5,3364.8,3.2078]
[1735602504024,2.24677284,3365.1,3364.0,0.74453]
[1735602504228,2.24677284,3365.1,3364.4,3.2078]
[1735602504229,1.1994,3365.0,3364.4,3.2078]
[1735602504429,2.4699,3365.0,3364.7,0.29774]
[1735602505033,2.4699,3365.0,3364.4,3.2078]
[1735602505227,2.4699,3365.0,3364.8,0.29774]
[1735602505630,2.4699,3365.0,3364.4,3.2078]
[1735602506132,0.29774,3364.9,3364.5,0.29776]
[1735602506335,1.2437,3364.8,3364.5,0.29776]
[1735602508934,1.2437,3364.8,3364.4,3.2078]
[1735602509143,1.2437,3364.8,3364.6,0.29776]
[1735602509841,1.54144,3364.8,3364.6,0.29776]
[1735602510046,1.2437,3364.8,3364.6,0.29776]
[1735602510235,1.2437,3364.8,3364.7,0.29775]
[1735602519640,1.2437,3364.8,3364.7,3.50555]
[1735602522555,1.2437,3364.8,3364.7,0.29775]
[1735602522754,1.2437,3364.8,3364.7,3.50555]
[1735602527046,1.2437,3364.8,3364.7,0.29775]
[1735602527248,1.2437,3364.8,3364.7,3.50555]
[1735602527949,1.2437,3364.8,3364.7,0.29775]
[1735602528351,1.2437,3364.8,3364.7,3.50555]
[1735602532450,3.58594284,3365.7,3364.7,3.50555]
[1735602532451,3.49302005,3366.0,3365.8,0.29765]
[1735602532656,3.49302005,3366.0,3365.8,44.30545]
[1735602533451,3.49302005,3366.0,3365.8,3.50545]
[1735602533653,0.29764,3366.0,3365.8,3.50545]
[1735602534360,2.3199,3366.1,3365.8,3.50545]
[1735602534361,2.61753,3366.1,3365.8,3.50545]
[1735602534556,2.61753,3366.1,3365.8,3.2078]
[1735602534557,0.29764,3366.0,3365.8,3.2078]
[1735602534862,0.29764,3365.9,3365.8,3.2078]
[1735602535061,0.29764,3365.9,3365.3,3.50549]
[1735602535062,0.29768,3365.5,3365.3,3.50549]
[1735602535252,3.2078,3365.9,3365.3,3.2078]
[1735602535459,2.73236,3365.8,3365.5,0.29768]
[1735602536062,0.29766,3365.7,3365.5,0.29768]
[1735602537061,0.29767,3365.6,3365.5,0.29768]
[1735602537261,2.4347,3365.8,3365.5,0.29768]
[1735602537572,0.29767,3365.6,3365.4,0.29768]
[1735602538262,2.73236,3365.8,3365.6,0.29767]
[1735602538463,3.99606,3365.8,3365.6,0.29767]
[1735602539466,3.99606,3365.8,3365.5,40.8]
[1735602539666,3.99606,3365.8,3365.7,0.29766]
[1735602541661,3.6984,3365.8,3365.7,0.29766]
[1735602542368,2.4995,3365.8,3365.7,0.29766]
[1735602542963,2.4995,3365.8,3365.7,41.09766]
[1735602544864,2.31902193,3366.1,3365.7,2.54443284]
[1735602545164,2.31902193,3366.1,3366.0,3.50544]
[1735602545355,3.49302005,3366.1,3366.0,44.30544]
[1735602546765,3.5054,3366.4,3366.0,44.30544]
[1735602546970,3.5054,3366.4,3366.3,0.29761]
[1735602547667,0.2976,3366.4,3366.3,0.29761]
[1735602547960,0.29763,3366.1,3366.0,0.29763]
[1735602548166,2.462,3366.5,3365.6,3.2078]
[1735602548366,0.29762,3366.2,3366.1,0.29762]
[1735602548967,0.29762,3366.2,3365.6,44.75198]
[1735602548968,4.79620638,3366.5,3365.6,44.75198]
[1735602549170,1.52533,3366.1,3366.0,0.29763]
[1735602549963,1.2277,3366.1,3365.7,0.29765]
[1735602550163,1.163,3366.0,3365.5,4.64777163]
[1735602550371,0.29766,3365.8,3365.7,0.29766]
[1735602550871,0.29766,3365.8,3365.5,4.64777163]
[1735602550872,0.29767,3365.6,3365.5,4.64777163]
[1735602551568,0.29767,3365.7,3365.5,4.94545163]
[1735602552063,4.3627,3365.9,3365.5,0.29768]
[1735602552269,0.29767,3365.6,3365.4,0.29768]
[1735602552468,1.2162,3365.5,3365.4,0.29768]
[1735602552657,2.4287,3365.5,3365.4,0.29768]
[1735602554170,2.72638,3365.5,3365.3,0.29769]
[1735602554968,2.72638,3365.5,3365.2,41.0977]
[1735602555175,2.72638,3365.5,3365.3,0.2977]
[1735602555474,2.4287,3365.5,3365.4,0.29769]
[1735602556176,0.2977,3365.3,3365.0,4.94549163]
[1735602556370,1.2476,3365.2,3365.0,4.94549163]
[1735602556567,1.2476,3365.2,3365.1,0.29771]
[1735602556871,1.2476,3365.2,3365.1,41.09771]
[1735602557872,2.4287,3365.5,3365.3,0.2977]
[1735602558373,2.72638,3365.5,3365.3,0.2977]
[1735602559475,2.4287,3365.5,3365.1,40.8]
[1735602559873,0.2977,3365.3,3365.1,41.09771]
[1735602560079,1.2115,3365.2,3365.1,41.09771]
[1735602564178,1.2115,3365.2,3365.1,40.8]
[1735602564480,1.2115,3365.2,3365.1,41.09771]
[1735602564780,1.50921,3365.2,3365.1,40.8]
[1735602564977,0.29771,3365.1,3364.9,4.64777163]
[1735602565376,1.2335,3365.0,3364.9,4.64777163]
[1735602565681,1.53122,3365.0,3364.9,4.64777163]
[1735602567078,1.53122,3365.0,3364.4,44.30558]
[1735602567079,0.29777,3364.5,3364.4,44.30558]
[1735602568581,0.29777,3364.5,3364.4,41.09778]
[1735602572590,0.29776,3364.6,3364.4,41.09778]
[1735602572780,0.29777,3364.5,3364.4,41.09777]
[1735602573088,1.1494,3364.9,3364.4,41.09777]
[1735602573284,6.77801809,3365.0,3364.6,3.2078]
[1735602573285,2.33671809,3365.0,3364.6,3.2078]
[1735602573485,2.33671809,3365.0,3364.9,0.29773]
[1735602574087,2.33671809,3365.0,3364.9,41.09773]
[1735602574987,0.2977,3365.3,3364.9,40.8]
[1735602575189,2.4067,3365.4,3365.0,3.50552]
[1735602575486,2.4067,3365.4,3364.9,41.09773]
[1735602575689,0.29772,3365.0,3364.9,0.29773]
[1735602576583,4.65347284,3365.4,3365.0,0.29772]
[1735602576783,0.29772,3365.1,3365.0,0.29772]
[1735602577180,4.65347284,3365.4,3364.8,40.8]
[1735602577391,0.29772,3365.0,3364.9,0.29773]
[1735602579392,4.65347284,3365.4,3364.8,40.8]
[1735602579691,4.65347284,3365.4,3364.9,0.29773]
[1735602579692,0.29772,3365.1,3364.9,0.29773]
[1735602582593,0.29772,3365.0,3364.9,0.29773]
[1735602586097,0.29772,3365.0,3364.8,40.8]
[1735602586391,2.24677284,3365.1,3364.7,3.2078]
[1735602586594,0.29775,3364.7,3364.6,4.64777163]
[1735602586991,3.90425,3364.7,3364.6,4.64777163]
[1735602587799,0.29779,3364.3,3364.2,3.50559]
[1735602590897,0.29779,3364.3,3364.2,3.2078]
[1735602591101,0.29779,3364.3,3364.2,3.50559]
[1735602592402,0.29779,3364.3,3364.2,44.30559]
[1735602595299,0.29779,3364.3,3364.2,44.0078]
[1735602595502,0.29779,3364.3,3364.2,44.30559]
[1735602596906,0.29778,3364.4,3364.3,0.29778]
[1735602597201,6.68761809,3364.7,3364.5,0.29776]
[1735602597202,0.29776,3364.6,3364.5,0.29776]
[1735602597406,2.33671809,3364.7,3364.6,0.29776]
[1735602598398,3.2078,3365.0,3364.4,1.1927]
[1735602598601,3.2078,3365.0,3364.4,1.49047]
[1735602598803,3.2078,3365.0,3364.4,1.1927]
[1735602598804,0.29777,3364.5,3364.4,1.1927]
[1735602599204,0.29777,3364.5,3364.4,1.49048]
[1735602599406,0.29777,3364.5,3364.4,0.29778]
[1735602600198,3.95213,3365.0,3364.4,0.29778]
[1735602600398,0.29776,3364.6,3364.5,0.29777]
[1735602600599,3.2078,3365.0,3364.3,5.84107163]
[1735602600798,0.29775,3364.7,3364.6,0.29776]
[1735602601006,3.2078,3365.0,3364.4,0.29777]
[1735602601202,0.29777,3364.5,3364.4,4.94554163]
[1735602601405,0.29776,3364.7,3364.5,0.29776]
[1735602601601,3.2078,3365.0,3364.5,0.29776]
[1735602601805,0.29776,3364.7,3364.5,0.29776]
[1735602602404,0.29776,3364.7,3364.4,4.64777163]
[1735602602405,0.29773,3364.9,3364.7,0.29775]
[1735602602602,0.29774,3364.8,3364.7,0.29775]
[1735602603009,3.50553,3365.0,3364.9,0.29773]
[1735602603802,3.2078,3365.0,3364.7,0.29775]
[1735602604004,0.29774,3364.9,3364.7,0.29775]
[1735602604512,0.29774,3364.9,3364.8,0.29774]
[1735602604909,3.2078,3365.0,3364.8,0.29774]
[1735602605208,0.29773,3364.9,3364.8,0.29774]
[1735602605706,3.50553,3365.0,3364.8,0.29774]
[1735602606107,3.2078,3365.0,3364.9,0.29773]
[1735602606306,2.33671809,3365.2,3365.1,0.29771]
[1735602607314,2.33671809,3365.5,3365.4,0.29769]
[1735602608812,0.29768,3365.5,3365.3,4.94546163]
[1735602609013,0.29769,3365.4,3365.3,4.64777163]
[1735602609213,1.46819,3365.4,3365.3,4.64777163]
[1735602609415,1.1705,3365.4,3365.3,4.94547163]
[1735602610507,1.1705,3365.4,3365.3,0.2977]
[1735602610717,0.29771,3365.2,3365.1,7.85557163]
[1735602611217,1.1758,3365.3,3365.2,0.29771]
[1735602611511,1.4735,3365.3,3365.2,0.29771]
[1735602611717,1.4735,3365.3,3365.1,8.15328163]
[1735602611917,1.4735,3365.3,3365.1,3.2078]
[1735602611918,0.29771,3365.2,3365.1,3.2078]
[1735602612414,1.1758,3365.3,3364.8,4.64777163]
[1735602612609,2.33671809,3365.5,3365.4,0.29769]
[1735602613314,2.33671809,3365.5,3365.4,41.09769]
[1735602613509,2.33671809,3365.5,3365.4,0.29769]
[1735602614516,2.4645,3365.7,3365.5,0.29768]
[1735602614818,2.76216,3365.7,3365.5,0.29768]
[1735602615317,0.29767,3365.6,3365.4,0.29768]
[1735602615916,2.76217,3365.7,3365.5,0.29768]
[1735602617715,2.76217,3365.7,3365.4,0.29768]
[1735602619321,2.76217,3365.7,3365.2,7.18807163]
[1735602619322,2.76217,3365.7,3365.5,0.29768]
[1735602620624,2.4645,3365.7,3365.2,2.5403]
[1735602620823,2.4645,3365.7,3365.6,0.29767]
[1735602621913,1.2816,3365.9,3365.5,3.2078]
[1735602622125,1.2816,3365.9,3365.8,0.29765]
[1735602623117,0.29766,3365.7,3365.5,3.50547]
[1735602623518,3.52837284,3365.9,3365.3,4.64777163]
[1735602623519,1.1889,3365.6,3365.3,4.64777163]
[1735602623714,1.2896,3365.5,3365.4,0.29768]
[1735602624412,0.29769,3365.4,3365.3,4.64777163]
[1735602624616,4.4974,3365.5,3365.2,5.83856198]
[1735602624617,0.2977,3365.3,3365.2,5.83856198]
[1735602624812,2.24677284,3365.3,3364.7,9.56664602]
[1735602625020,0.29774,3364.9,3364.7,9.56664602]
[1735602625720,2.24677284,3365.3,3364.7,9.56664602]
[1735602625721,2.24677284,3365.3,3364.7,9.26889602]
[1735602626121,0.29772,3365.1,3364.9,0.29773]
[1735602627631,1.232,3365.0,3364.9,0.29773]
[1735602628919,1.52972,3365.0,3364.9,0.29773]
[1735602629124,0.29777,3364.5,3364.3,0.29778]
[1735602629330,1.54748,3364.4,3364.2,4.75069]
[1735602629627,2.72938,3364.4,3364.2,1.54289]
[1735602629930,0.29779,3364.2,3364.1,1.2605]
[1735602630117,3.6071,3364.4,3364.0,40.8]
[1735602630426,0.29779,3364.3,3364.1,0.2978]
[1735602630921,0.29779,3364.3,3364.0,42.35831]
[1735602631123,0.29779,3364.3,3364.1,0.2978]
[1735602634628,2.54456284,3364.2,3364.0,42.35831]
[1735602635724,0.29779,3364.2,3364.0,42.35831]
[1735602635925,0.29779,3364.3,3364.1,0.2978]
[1735602638523,3.2078,3364.7,3364.1,3.2078]
[1735602639028,5.54451809,3364.7,3364.6,0.29776]
[1735602639426,2.33671809,3364.7,3364.6,3.50556]
[1735602640222,5.84220809,3365.4,3364.6,3.50556]
[1735602640531,5.84220809,3365.4,3365.2,0.2977]
[1735602640725,2.24677284,3365.3,3364.7,40.8]
[1735602641032,2.24677284,3365.0,3364.7,40.8]
[1735602641224,0.29774,3364.8,3364.7,40.8]
[1735602641826,0.29775,3364.7,3364.6,3.2078]
[1735602642024,3.73502284,3364.7,3364.6,3.2078]
[1735602645829,3.43727284,3364.7,3364.6,3.2078]
[1735602646029,0.29774,3364.8,3364.7,0.29775]
[1735602646736,0.29774,3364.8,3364.6,3.50555]
[1735602647527,2.2956,3364.9,3364.6,3.2078]
[1735602647528,2.54452284,3364.7,3364.6,3.2078]
[1735602648035,2.54452284,3364.7,3364.6,3.50556]
[1735602648737,2.54452284,3364.7,3364.6,3.2078]
[1735602649541,2.54452284,3364.7,3364.5,0.29776]
[1735602649733,2.24677284,3364.7,3364.5,0.29776]
[1735602650038,0.29776,3364.6,3364.5,0.29776]
[1735602650235,2.54453284,3364.7,3364.5,0.29776]
[1735602653537,0.29776,3364.6,3364.5,0.29776]
[1735602654135,0.29776,3364.6,3364.3,3.2078]
[1735602654529,0.29776,3364.6,3364.4,0.29778]
[1735602655138,2.24677284,3364.7,3364.3,3.2078]
[1735602655337,0.29778,3364.4,3364.3,3.2078]
[1735602655537,2.54455284,3364.4,3364.3,3.2078]
[1735602655836,0.29782,3364.0,3363.8,0.29783]
[1735602656037,0.29782,3364.0,3363.7,5.4428]
[1735602656038,0.29782,3364.0,3363.9,0.29782]
[1735602656239,3.2778,3364.3,3363.9,0.29782]
[1735602656240,0.29781,3364.1,3363.9,0.29782]
[1735602657137,0.29781,3364.1,3364.0,0.29781]
[1735602658128,0.2978,3364.2,3364.1,0.2978]
[1735602666242,3.2778,3364.3,3363.7,5.4428]
[1735602666440,0.29783,3363.9,3363.8,0.29782]
[1735602666848,0.29785,3363.7,3363.6,0.29785]
[1735602667036,0.29785,3363.7,3363.3,5.589]
[1735602667037,0.29783,3363.9,3363.8,0.29782]
[1735602667746,0.29784,3363.8,3363.7,0.29783]
[1735602668150,0.29783,3363.9,3363.8,0.29782]
[1735602671449,0.29784,3363.8,3363.7,0.29784]
[1735602672949,0.29784,3363.7,3363.5,40.8]
[1735602673152,0.29784,3363.7,3363.5,41.09785]
[1735602674651,0.29785,3363.6,3363.5,40.8]
[1735602675654,0.29787,3363.3,3363.2,3.2078]
[1735602676355,0.29789,3363.1,3363.0,9.26889602]
[1735602676547,2.54466284,3363.1,3362.7,9.26889602]
[1735602676743,3.00976,3363.5,3362.9,0.29791]
[1735602676744,0.2979,3363.0,3362.9,0.29791]
[1735602676948,0.2979,3363.0,3362.9,41.09791]
[1735602677344,0.2979,3363.0,3362.9,0.29791]
[1735602677754,0.2979,3363.0,3362.8,0.29791]
[1735602678048,0.2979,3363.0,3362.8,41.09791]
[1735602678258,0.29791,3362.9,3362.8,41.09791]
[1735602678445,0.29792,3362.8,3362.7,0.29792]
[1735602678649,2.24677284,3363.1,3362.7,0.29792]
[1735602678650,0.29792,3362.9,3362.7,0.29792]
[1735602678851,0.29791,3362.9,3362.7,0.29792]
[1735602680655,0.2979,3363.1,3362.9,0.2979]
[1735602681151,5.54451809,3363.2,3362.6,3.2078]
[1735602681353,3.2078,3363.2,3362.6,3.2078]
[1735602681660,0.29792,3362.9,3362.7,0.29793]
[1735602681853,0.29792,3362.9,3362.7,1.38293]
[1735602682248,0.29792,3362.8,3362.7,1.085]
[1735602682455,0.29791,3362.9,3362.7,1.085]
[1735602682655,0.29791,3362.9,3362.7,1.38292]
[1735602683156,0.29791,3362.9,3362.8,40.8]
[1735602686358,0.29791,3362.9,3362.8,41.09792]
[1735602687757,0.2979,3363.1,3362.9,0.29791]
[1735602688059,0.2979,3363.1,3363.0,1.1932]
[1735602688560,0.2979,3363.1,3363.0,42.2911]
[1735602688859,0.2979,3363.1,3363.0,41.9932]
[1735602689657,0.29793,3362.7,3362.6,0.29793]
[1735602689858,0.29792,3362.8,3362.7,0.29792]
[1735602690058,3.2078,3363.3,3362.9,0.29791]
[1735602690365,0.29791,3363.0,3362.9,0.29791]
[1735602691162,0.2979,3363.1,3363.0,0.29789]
[1735602693760,5.45457284,3363.3,3362.7,40.8]
[1735602693965,0.2979,3363.0,3362.9,0.2979]
[1735602697360,3.2078,3363.1,3363.0,0.2979]
[1735602697361,3.5057,3363.1,3363.0,0.2979]
[1735602698466,0.29792,3362.9,3362.8,0.29791]
[1735602701468,3.2078,3363.1,3362.9,0.2979]
[1735602701469,0.2979,3363.0,3362.9,0.2979]
[1735602702264,3.2078,3363.1,3363.0,0.2979]
[1735602702461,2.33276067,3363.4,3363.3,0.29787]
[1735602704368,3.79699101,3363.6,3363.3,0.29787]
[1735602704369,0.29785,3363.6,3363.3,1.1386]
[1735602704570,0.29785,3363.6,3363.5,0.29786]
[1735602706870,0.29786,3363.5,3363.4,0.29786]
[1735602707366,0.29787,3363.4,3363.3,1.1386]
[1735602707570,1.43247,3363.4,3363.3,1.1386]
[1735602708464,1.43247,3363.4,3363.3,1.43647]
[1735602708768,1.1346,3363.4,3362.9,2.3223]
[1735602708969,0.29789,3363.2,3363.1,0.29789]
[1735602710868,0.29789,3363.2,3363.0,1.4693]
[1735602711275,0.29789,3363.1,3363.0,1.1714]
[1735602713876,0.29792,3362.8,3362.7,40.8]
[1735602715072,4.3019,3362.8,3362.6,6.98263097]
[1735602715270,2.54470284,3362.7,3362.6,1.82603097]
[1735602715576,3.75670284,3362.7,3362.6,1.82603097]
[1735602715775,0.29796,3362.3,3362.2,50.11017462]
[1735602715972,2.54473284,3362.3,3362.2,9.31017462]
[1735602717287,0.29801,3361.8,3361.7,1.0894]
[1735602717572,2.54478284,3361.8,3361.7,1.0894]
[1735602720068,2.24677284,3361.8,3361.7,1.38742]
[1735602720372,1.1136,3361.9,3361.7,1.38742]
[1735602720373,0.298,3361.9,3361.7,1.38742]
[1735602720569,3.2078,3362.0,3361.7,1.38742]
[1735602720764,0.29801,3361.8,3361.7,1.38742]
[1735602720968,0.29801,3361.8,3361.7,42.18742]
[1735602721176,0.29801,3361.8,3361.7,41.8894]
[1735602721473,0.29801,3361.8,3361.7,42.1874]
[1735602721673,3.2078,3362.0,3361.7,41.8894]
[1735602721872,3.50578,3362.0,3361.8,0.29799]
[1735602722075,3.2078,3362.0,3361.8,0.29799]
[1735602722275,3.2078,3362.0,3361.7,41.8894]
[1735602722577,3.2078,3362.0,3361.9,0.29798]
[1735602724678,3.50578,3362.0,3361.9,0.29798]
[1735602726877,0.29798,3362.0,3361.9,0.29798]
[1735602727281,2.24677284,3362.1,3361.7,1.0894]
[1735602727480,2.24677284,3362.1,3361.8,0.29799]
[1735602727877,0.29799,3361.9,3361.8,0.29799]
[1735602728782,0.298,3361.8,3361.7,1.3874]
[1735602729282,0.298,3361.8,3361.7,1.0894]
[1735602730384,0.298,3361.8,3361.7,1.38741]
[1735602730979,2.24677284,3361.8,3361.5,1.1922]
[1735602731183,0.29802,3361.6,3361.5,1.1922]
[1735602735776,4.4063,3362.0,3361.5,1.1922]
[1735602735983,3.2078,3362.0,3361.9,0.29796]
[1735602736486,3.50575,3362.0,3361.9,0.29796]
[1735602739383,3.2078,3362.0,3361.9,0.29796]
[1735602739586,0.29794,3362.1,3361.5,4.4]
[1735602739787,0.29794,3362.1,3362.0,0.29795]
[1735602740195,0.29794,3362.1,3362.0,1.34245]
[1735602741689,3.27847284,3362.4,3362.0,1.0445]
[1735602741988,0.29794,3362.2,3362.1,1.0003]
[1735602742188,2.24677284,3362.7,3362.1,1.0003]
[1735602742483,2.33855474,3362.8,3362.7,0.29789]
[1735602742684,3.50783211,3362.9,3362.8,0.29788]
[1735602742885,1.84803211,3362.9,3362.8,0.29788]
[1735602743090,10.64506595,3363.9,3362.7,5.45457284]
[1735602743091,4.66552134,3363.5,3362.7,5.45457284]
[1735602743382,4.66552134,3363.5,3363.4,0.29783]
[1735602744290,4.66552134,3363.5,3363.3,3.2078]
[1735602744489,0.29782,3363.5,3363.3,3.50563]
[1735602746390,0.29782,3363.5,3363.4,0.29783]
[1735602746593,2.54458284,3363.6,3363.4,0.29783]
[1735602751088,2.54458284,3363.6,3363.5,0.29782]
[1735602752595,1.3005,3363.7,3363.6,0.29781]
[1735602753593,2.24677284,3363.9,3363.4,1.0249]
[1735602753787,3.33857284,3364.2,3363.9,0.29778]
[1735602753988,0.29777,3364.1,3363.7,3.2078]
[1735602754196,0.29777,3364.1,3364.0,0.29777]
[1735602754396,3.2078,3364.3,3364.2,0.29776]
[1735602754694,0.29774,3364.4,3364.2,0.29776]
[1735602754998,0.29774,3364.4,3364.3,0.29775]
[1735602759999,0.29774,3364.4,3364.3,3.50555]
[1735602767600,0.29774,3364.4,3364.3,3.2078]
[1735602769303,1.071,3364.6,3364.3,3.2078]
[1735602769607,1.36873,3364.6,3364.5,0.29773]
[1735602769809,0.29773,3364.5,3364.4,2.46623]
[1735602772003,1.071,3364.6,3364.5,0.29773]
[1735602772203,0.29772,3364.7,3364.6,0.29772]
[1735602772405,5.16202,3365.1,3364.4,2.1685]
[1735602772406,1.1034,3365.0,3364.9,0.2977]
[1735602772606,0.29769,3365.0,3364.9,0.2977]
[1735602773109,0.29769,3365.0,3364.8,3.2078]
[1735602773110,0.29768,3365.1,3365.0,0.29768]
[1735602773503,2.24677284,3365.2,3364.8,3.2078]
[1735602773705,0.29768,3365.1,3365.0,0.29768]
[1735602774413,2.24677284,3365.2,3364.8,3.2078]
[1735602774612,0.29767,3365.2,3365.1,0.29767]
[1735602776405,0.29768,3365.1,3365.0,1.0285]
[1735602777110,0.29769,3364.9,3364.8,3.2078]
[1735602777312,0.74423,3365.0,3364.3,4.233]
[1735602777613,0.29772,3364.7,3364.6,0.29772]
[1735602778205,1.0118,3365.1,3364.3,4.233]
[1735602778417,0.29769,3365.0,3364.9,0.29769]
[1735602778807,0.2977,3364.9,3364.8,0.2977]